Cogmind - Beta 15 @@@ ROGUE MODE // 2025.05.13 @ 12:03:23 Player: OJ Result: Smashed by cave-in Performance ------------- Evolutions (0) 0 Regions Visited (2) 400 Robots Destroyed (29) 145 Value Destroyed (607) 607 Prototype IDs (0) 0 Alien Tech Used (0) 0 Bonus (0) 0 TOTAL SCORE: 1152 Bonus ------- None Cogmind --------- Core Integrity 0/250 Matter 300/300 Energy 250/250 System Corruption 2% Temperature Cool (0) Movement Treading (160) Location -10/Subcaves Parts ------- > --- POWER (1) -------- Ion Engine > --- PROPULSION (2) --- Light Treads Light Treads > --- UTILITY (2) ------ Large Storage Unit > --- WEAPON (2) ------- Small Laser Subdweller Laser > --- INVENTORY (15) --- Ion Engine Ion Engine Light Ion Engine Light Treads Heat Sink Improved Heat Sink Disposable Heat Sink Large Storage Unit High-capacity Battery (250) Large Matter Pod (150) Propulsion Shielding Weapon Shielding Grenade Launcher Shrapnel Trap Peak State ------------ > --- POWER ------------ Light Nuclear Core > --- PROPULSION ------- Light Treads Light Treads > --- UTILITY ---------- Improved Heat Sink Large Storage Unit > --- WEAPON ----------- Small Laser Assault Rifle > --- INVENTORY -------- Ion Engine Ion Engine Ion Engine Light Ion Engine Light Treads Heat Sink Heat Sink Large Storage Unit Large Storage Unit Large Matter Pod Large Matter Pod Propulsion Shielding Weapon Shielding Small Laser Grenade Launcher [Rating: 12] Favorites ----------- Power Light Nuclear Core Engine Ion Engine Power Core Light Nuclear Core Propulsion Light Treads Treads Light Treads Utility Large Storage Unit Device Improved Heat Sink Storage Large Storage Unit Protection Core Shielding Weapon Assault Rifle Energy Gun Small Laser Ballistic Gun Assault Rifle Launcher Grenade Launcher Build | -11 -10 -10 ------- Run | Yrd Mat Sub Slots Evolved . | . . . Power . | . . . Propulsion . | . . . Utility . | . . . Weapon . | . . . Parts Attached 19 | 7 7 5 Power 4 | 2 1 1 Engine 3 | 2 . 1 Core 1 | . 1 . Reactor . | . . . Propulsion 3 | 2 1 . Treads 3 | 2 1 . Leg . | . . . Wheel . | . . . Hover . | . . . Flight . | . . . Utility 6 | 1 4 1 Device 3 | . 3 . Storage 2 | 1 1 . Processor . | . . . Hackware . | . . . Protection 1 | . . 1 Artifact . | . . . Weapon 6 | 2 1 3 Energy Gun 4 | 1 1 2 Energy Cannon . | . . . Ballistic Gun 1 | 1 . . Ballistic Cannon . | . . . Launcher 1 | . . 1 Special Weapon . | . . . Impact Weapon . | . . . Slashing Weapon . | . . . Piercing Weapon . | . . . Special Melee Weapon . | . . . Unidentified Prototypes . | . . . Parts Lost 2 | . . 2 Power 1 | . . 1 Propulsion . | . . . Utility 1 | . . 1 Weapon . | . . . Highest Loss Streak 1 | . . 1 To Critical Strikes . | . . . Average Backups 12 | 1 12 14 Power 3 | . 3 3 Propulsion . | . . 1 Utility 6 | . 6 7 Weapon 1 | . 1 1 Tool/Special . | . . . Unused Backups 13 | . 3 10 Power 2 | . . 2 Propulsion 1 | . . 1 Utility 10 | . 3 7 Weapon . | . . . Tool/Special . | . . . Average Slot Usage (%) 98 | . 98 100 Engine 5 | . 6 2 Core 8 | . 7 11 Treads 28 | . 28 28 Device 10 | . 12 . Storage 14 | . 14 14 Protection 1 | . . 14 Energy Gun 14 | . 14 16 Ballistic Gun 12 | . 14 5 Peak Build Rating 12 | 6 12 11 Average Rating 9 | 4 9 10 On Entrance 6 | . 6 12 Naked Turns . | . . . Heaviest Build 33 | 13 30 33 Greatest Support 40 | 40 40 40 Greatest Overweight (x) . | . . . Average Overweight (x) . | . . . Largest Inventory Capacity 15 | 8 15 15 Average Capacity 13 | 7 14 15 Most Carried 15 | 2 15 15 Average Carried 12 | 1 12 14 Final Capacity 15 | 8 15 15 Final Carried 15 | 2 15 14 Class Distribution -------------------- 100% | Mutant Dominant Class ---------------- Mutant | -10/Materials Mutant | -10/Subcaves Resources | -11 -10 -10 ----------- Run | Yrd Mat Sub Matter Collected 927 | 178 655 94 Remotely . | . . . Salvage Created 774 | . 663 111 Parts 67 | . 55 12 Haulers Intercepted 2 | . 2 . Recyclers Shooed 1 | . 1 . Parts Field Recycled . | . . . Retrieved Matter . | . . . Parts Self-Destructed 7 | . . 7 Prevented . | . . . Kills | -11 -10 -10 ------- Run | Yrd Mat Sub Combat Hostiles Destroyed 22 | . 15 7 Guns 20 | . 15 5 AOE 2 | . . 2 Classes Destroyed 8 | . 7 1 Worker 1 | . 1 . Builder 1 | . 1 . Hauler 2 | . 2 . Operator 1 | . 1 . Watcher 2 | . 2 . Swarmer 10 | . 6 4 Grunt 9 | . 9 . Subdweller 3 | . . 3 Best Kill Streak 6 | . 6 4 Combat Bots Only 6 | . 6 4 Max Kills in Single Turn 2 | . 1 2 Gunslinging 1 | . . 1 Exploded 1 | . . 1 Melee . | . . . Uniques/NPCs Destroyed . | . . . Combat | -11 -10 -10 -------- Run | Yrd Mat Sub Hostile Shots Fired 142 | . 78 64 Missed 54 | . 30 24 Hits 88 | . 48 40 Projectile 88 | . 48 40 Damage Taken 1071 | . 538 533 Core 268 | . 129 139 Absorbed by Shields . | . . . Redirected to Shielding 5 | . . 5 Core Remaining (%) 100 | 100 . . Volleys Fired 83 | . 65 18 Largest 2 | . 2 2 Hottest 100 | . 70 100 Shots Fired 155 | . 126 29 Gun 151 | . 126 25 Cannon . | . . . Launcher 4 | . . 4 Special . | . . . Kinetic 68 | . 65 3 Thermal 83 | . 61 22 Explosive 4 | . . 4 Electromagnetic . | . . . Robot Hit Streak 9 | . 9 5 Robot Miss Streak 4 | . 4 2 Penetration Max . | . . . Secondary Targets 4 | . 1 3 Max Gunslinging Chain 1 | . 1 1 Shots Hit Robots 93 | . 75 18 Core Hits 42 | . 33 9 Critical Kills . | . . . Critical Parts Destroyed . | . . . Critical Strikes 2 | . 2 . Burn 2 | . 2 . Melee Attacks . | . . . Impact . | . . . Slashing . | . . . Piercing . | . . . Sneak Attacks . | . . . Combat Hostiles . | . . . Follow-up Attacks . | . . . Damage Inflicted 1356 | . 922 434 Guns 1069 | . 921 148 Cannons . | . . . Explosions 286 | . . 286 Melee . | . . . Ramming 1 | . 1 . Kinetic 556 | . 529 27 Thermal 513 | . 392 121 Explosive 286 | . . 286 Electromagnetic . | . . . Impact . | . . . Slashing . | . . . Piercing . | . . . Highest Corruption . | . . . Average Corruption . | . . . Corruption Purged . | . . . Corruption Blocked . | . . . Overload Shots . | . . . Overflow Damage . | . . . Projectiles . | . . . Explosions . | . . . Melee . | . . . Knockbacks . | . . . Impact . | . . . Kinetic . | . . . Secondary . | . . . Self-Inflicted Damage . | . . . Shots . | . . . Rammed 1 | . 1 . Targets Rammed 1 | . 1 . Kicked . | . . . Crushed . | . . . Highest Temperature 42 | . 42 10 Average Temperature 18 | . 20 4 Received Heat Transfer 321 | . 222 99 Siege Activations . | . . . Martial Activations . | . . . Shielding Activations . | . . . Robots Disrupted . | . . . Combat Hostiles . | . . . Robots Corrupted . | . . . Combat Hostiles . | . . . Parts Fried . | . . . Impact Corruptions . | . . . Robots Melted 1 | . 1 . Combat Hostiles . | . . . Parts Melted 5 | . 5 . Heat Transferred 1343 | . 1106 237 Parts Sabotaged . | . . . Parts Stolen . | . . . Parts Stripped . | . . . Power Chain Reactions . | . . . Alert | -11 -10 -10 ------- Run | Yrd Mat Sub Maximum Alert Level . | . . . Low Security (%) 100 | 100 100 . Level 1 . | . . . Level 2 . | . . . Level 3 . | . . . Level 4 . | . . . Level 5 . | . . . High Security . | . . . Max Security . | . . . Peak Influence 120 | . 120 . Initial . | . . . Average 26 | . 27 . Influence Increases 575 | . 435 140 Destroy 0b10 Robot/C 380 | . 300 80 Destroy 0b10 Robot/NC 35 | . 35 . Destroy Leader 58 | . 58 . Successful Hack 27 | . 27 . Disable Machine 15 | . 15 . Lose Combat Pursuer 60 | . . 60 Influence Decreases 475 | . 379 96 Entered New Map 28 | . . 28 Time Decay 427 | . 379 48 Lost Part 20 | . . 20 Squads Dispatched 2 | . 2 . Investigation 1 | . 1 . Extermination . | . . . Reinforcement 1 | . 1 . Assault . | . . . Garrison . | . . . Intercept . | . . . Searches Triggered . | . . . Construction Impeded . | . . . Haulers Reinforced . | . . . Active Scanning Responses . | . . . Cargo Convoy Interrupts . | . . . Stealth | -11 -10 -10 --------- Run | Yrd Mat Sub Distress Signals 1 | . 1 . Communications Jammed . | . . . Distress Signals . | . . . Times Spotted 33 | . 20 13 Peak Tracking Total 6 | . 4 6 Tactical Retreats 2 | . . 2 Traps | -11 -10 -10 ------- Run | Yrd Mat Sub Traps Triggered 1 | . 1 . Indirectly . | . . . Trap Hack Attempts . | . . . Triggered . | . . . Disarmed . | . . . Reprogrammed . | . . . Reused . | . . . Traps Extracted . | . . . Installed . | . . . Triggered . | . . . Most Traps Carried 1 | . . 1 Machines | -11 -10 -10 ---------- Run | Yrd Mat Sub Machines Disabled 1 | . 1 . Max in Single Turn 1 | . 1 . Machines Repaired . | . . . Machines Dismantled . | . . . Machines Sabotaged . | . . . Overloaded Fab Kills . | . . . Hacking | -11 -10 -10 --------- Run | Yrd Mat Sub Machines Accessed 7 | . 7 . Terminals 7 | . 7 . Fabricators . | . . . Repair Stations . | . . . Recycling Units . | . . . Scanalyzers . | . . . Garrison Access . | . . . Total Hacks 29 | . 29 . Successful 17 | . 17 . Failed 12 | . 12 . Catastrophic . | . . . Database Lockouts . | . . . Manual 28 | . 28 . Terminals 29 | . 29 . Fabricators . | . . . Repair Stations . | . . . Recycling Units . | . . . Scanalyzers . | . . . Garrison Access . | . . . Terminal Hacks 7 | . 7 . Part Schematic 1 | . 1 . Robot Analysis 3 | . 3 . Terminal Index 2 | . 2 . Dispatch Records 1 | . 1 . Fabricator Hacks . | . . . Repair Station Hacks . | . . . Recycling Unit Hacks . | . . . Scanalyzer . | . . . Garrison Access Hacks . | . . . Unauthorized Hacks 10 | . 10 . Terminals 10 | . 10 . Botnet 5 | . 5 . Skim 5 | . 5 . Fabricators . | . . . Repair Stations . | . . . Recycling Units . | . . . Scanalyzers . | . . . Garrison Access . | . . . Data Cores Recovered . | . . . Used . | . . . Hacking Detections 7 | . 7 . Full Trace Events 1 | . 1 . Feedback Events . | . . . Feedback Blocked . | . . . Robot Schematics Acquired . | . . . Robots Built . | . . . Authchips . | . . . Time . | . . . Total Robot Build Rating . | . . . Part Schematics Acquired 1 | . 1 . Parts Built . | . . . Authchips . | . . . Time . | . . . Total Part Build Rating . | . . . Parts Repaired . | . . . Time . | . . . Parts Recycled . | . . . Recycled Matter . | . . . Retrieved Matter . | . . . Retrieved Components . | . . . Parts Scanalyzed . | . . . Part Schematics Acquired . | . . . Parts Damaged . | . . . Bothacking | -11 -10 -10 ------------ Run | Yrd Mat Sub Used RIF Installer . | . . . Robots Hacked . | . . . Non-combat . | . . . Combat . | . . . Robot Hacks Applied . | . . . Relay Couplers Released . | . . . Fabnet Peak Effective % . | . . . Robots Rewired . | . . . Allies Hacked . | . . . Hacks Repelled . | . . . Allies | -11 -10 -10 -------- Run | Yrd Mat Sub Total Allies . | . . . Largest Group . | . . . Highest-Rated Group . | . . . Highest-Rated Ally . | . . . Total Orders . | . . . Ally Attacks . | . . . Total Damage . | . . . Kills . | . . . Allies Corrupted . | . . . Allies Melted . | . . . Intel | -11 -10 -10 ------- Run | Yrd Mat Sub Active Infowar (turns) . | . . . Robot Analysis Total 3 | . 3 . Derelict Logs Recovered . | . . . Drone Launches . | . . . Drone Recoveries . | . . . Exploration | -11 -10 -10 ------------- Run | Yrd Mat Sub Turns Passed 1864 | 71 1561 232 Spaces Moved 773 | 39 635 99 Core 2 | 2 . . Treads 771 | 37 635 99 Legs . | . . . Wheels . | . . . Hover . | . . . Flight . | . . . Fastest Speed 50 | 50 160 160 Average Speed 159 | 154 160 160 Slowest Speed 160 | 160 160 160 Overloaded Moves . | . . . Propulsion Burnouts . | . . . Robots Hopped . | . . . Potential Cave-ins . | . . . Cave-ins Triggered 1 | . . 1 Exploration Rate (%) 32 | 4 86 8 Regions Visited 2 Branch Regions 1 Pre-discovered Areas . | . . . Known Exits Taken 1 | . 1 . Unknown Exits Taken 1 | 1 . . Scrap Searched 1 | . . 1 Spaces Dug . | . . . Terrain Destroyed 18 | . . 18 Melee . | . . . Projectile 1 | . . 1 AOE 17 | . . 17 Terrain Rammed . | . . . Walls Destroyed . | . . . Machines Disabled . | . . . Actions | -11 -10 -10 --------- Run | Yrd Mat Sub Total 1246 | 46 1057 143 Wait 344 | . 327 17 Move 771 | 38 634 99 Hop . | . . . Pick Up 18 | 1 15 2 Fast Attach 7 | 6 1 . Attach 1 | . . 1 Detach . | . . . Swap 11 | 1 6 4 Drop 10 | . 8 2 Fire 83 | . 65 18 Melee . | . . . Ram . | . . . Kick . | . . . Crush 1 | . 1 . Escape Stasis . | . . . Rewire . | . . . Trap . | . . . Miscellaneous . | . . . Route ------- -11/Scrapyard -10/Materials (discovered 6 exits: *Mat x3 / *Min x2 / *Sub) -10/Subcaves (discovered 3 exits: *Mat x2 / [*Rec]) History --------- Turn | Location | Event 13 | -11/Scrapyard | Discovered new exit (range 16) 72 | -11/Scrapyard | Entered Materials 72 | -10/Materials | Discovered new exit (range 9) 313 | -10/Materials | Build established: Mutant 890 | -10/Materials | Discovered new exit (range 14) 1190 | -10/Materials | Discovered new exit (range 16) 1318 | -10/Materials | Identified exit to Materials 1385 | -10/Materials | Identified exit to Mines 1481 | -10/Materials | Core integrity fell below 50% 1519 | -10/Materials | Identified exit to Subcaves 1540 | -10/Materials | Learned 2 Storage zone layouts 1571 | -10/Materials | Learned location of 2 exits from Mines 1612 | -10/Materials | Learned location of 1 exit from Storage 1633 | -10/Materials | Entered Subcaves 1634 | -10/Subcaves | Approached by a straggling Scientist 1634 | -10/Subcaves | Identified exit to Materials 1817 | -10/Subcaves | Discovered new exit (range 11) 1841 | -10/Subcaves | Shifting Twisted Machinery released Riot Gun 1866 | -10/Subcaves | Crushed by falling debris 1866 | -10/Subcaves | Smashed by cave-in Last Messages --------------- 01825_ S-10 Pest destroyed. 01825_ Switching to secondary target: S-10 Pest. 01828_ S-10 Pest destroyed. 01828_ Switching to secondary target: S-10 Pest. 01830_ Lgt. Ion Engine fries itself beyond repair. 01837_ S-10 Pest destroyed. 01837_ Switching to secondary target: S-10 Pest. 01837_ S-10 Pest destroyed. 01840_ Flight Unit fries itself beyond repair. 01840_ Lgt. Assault Rifle fries itself beyond repair. 01840_ Acquired 15 matter. Riot Gun falls loose from the Twisted Machinery. 01842_ Flight Unit fries itself beyond repair. 01849_ Lgt. Ion Engine fries itself beyond repair. 01855_ Flight Unit fries itself beyond repair. 01858_ Sub. Laser shoots sparks and powers down. 01866_ The unstable cave ceiling collapses. 01866_ Crushed by falling debris. 01866_ Core Shielding destroyed. 01866_ System corrupted by crushing effect (+2). Map ----- +----------------------------------------------------+ | ?????????????????????????????????????????????????? | | ?????????????????????????????????????????????????? | | ?????????????????????????????????????????????????? | | ?????????????????????????????????????????????????? | | ?????????????????????????????????????????????????? | | ?????????????????????????????????????????????????? | | ?????????????????????????????????????????????????? | | ?????????????????????????????????????????????????? | | ?????????????????????????????????????????????????? | | ?????????????????????????????????????????????????? | | ?????????????????????????????????????????????????? | | ?????????????????????????????????????????????????? | | ?????????????????????????????????????????????????? | | ??????????????????????????#??????????????????????? | | ??????????????????????####<####??????????????????? | | ??????????????????????"""" """"#?????????????????? | | ??????????????????????" " " "#?????????????????? | | ??????????????????????? t t "#?????????????????? | | ??????????????????????? ??????????????????? | | ???????????????????????? ???????????????????? | | ???????????????????????? ????????????????????? | | ????????????????????????#[ #????????????????????? | | ????????????????????????#" "#????????????????????? | | ????????????????###?????#" %#????????????????????? | | ???????????????## ##??###%%$#????????????????????? | | ??????????????## #%#### @###????????????????????? | | ?????????????## ### ####??????????????????????? | | ??????????#### ##?######?????????????????????????? | | ?????????## ##?????????????????????????????????? | | ????????## ####??????????????????????????????????? | | ##????### ##?????????????????????????????????????? | | ###### [# #?????????????????????????????????????? | | # ## #%###?????????????????????????????????????? | | ## ######???????????????????????????????????????? | | ?####????????????????????????????????????????????? | | ?????????????????????????????????????????????????? | | ?????????????????????????????????????????????????? | | ?????????????????????????????????????????????????? | | ?????????????????????????????????????????????????? | | ?????????????????????????????????????????????????? | | ?????????????????????????????????????????????????? | | ?????????????????????????????????????????????????? | | ?????????????????????????????????????????????????? | | ?????????????????????????????????????????????????? | | ?????????????????????????????????????????????????? | | ?????????????????????????????????????????????????? | | ?????????????????????????????????????????????????? | | ?????????????????????????????????????????????????? | | ?????????????????????????????????????????????????? | | ?????????????????????????????????????????????????? | +----------------------------------------------------+ Best States ------------- Heat Dissipation 39 Energy Generation 14 Energy Capacity 250 Matter Stores 300 Matter Capacity 300 Sight Range 16 Terrain Scan Density 10 Core Shielding 20 Evasion (%) 40 Recoil Reduction 2 Item Schematics ----------------- Huge Storage Unit | -10/Materials | Hacked Robot Schematics ------------------ None Fabricated ------------ Nothing Repaired ---------- Nothing Alien Tech Used ----------------- None Achievements -------------- None Challenges ------------ None Game ------ Seed DirtyGhostAccelerator Manual? 0 Play Time 00:15:05 Cumulative 101.4 hours Start 2025.05.13 @ 11:47:12 End 2025.05.13 @ 12:03:23 Sessions 1 Manual Loads 0 Difficulty Rogue Special Mode None Game No. 90 Rogue 90 Adventurer 0 Explorer 0 Win Type - Total 0 Types 0/0/0/0/0/0/0/0/0/0 Lore% 29 Gallery% 50 Achievement% 49 Wizard Run 0 Options --------- Layout 0 ASCII 0 Keyboard 0 Movement Mouse Keybinds 0 Fullscreen 1 Font 18/SmallcapsGlow Map View 76x50 Zoom Use 0% Tactical HUD 1 Map Filters NONE Filters NONE Steam 1 RUN: 6929666f-a80c-4b5e-a7e5-ba941608bf5a